fUSD/lending_fUSD_20240103
["ID","MTS","AMOUNT","RATE_DAILY","PERIOD"]
[310006533,1704285039931,-825.9413,0.00032776,2]
[310006535,1704285039942,-171.61158482,0.00032776,2]
[310006537,1704285039952,-203.04730497,0.00032776,2]
[310006539,1704285039963,-222.21140604,0.00032776,2]
[310006542,1704285039973,-396.48690055,0.00032776,2]
[310006545,1704285039988,-172.79503352,0.00032776,2]
[310006548,1704285039998,-742.12166305,0.00032776,2]
[310006560,1704285040246,-182.78980222,0.00032776,2]
[310006561,1704285040258,-446.41620398,0.00032776,2]
[310006562,1704285040267,-2610.74367706,0.00032776,2]
[310006563,1704285040277,-721.73,0.00032779,2]
[310006564,1704285040288,-3000.0,0.000328,2]
[310006565,1704285040298,-8900.0,0.000328,11]
[310006566,1704285040307,-1000.0,0.000328,7]
[310006567,1704285040317,-325.87,0.00032801,2]
[310006568,1704285040326,-2018.21706976,0.0003283,7]
[310006569,1704285040336,-1081.49196219,0.0003283,7]
[310006570,1704285040345,-920.84224265,0.0003283,6]
[310006571,1704285040354,-1490.37910837,0.0003283,7]
[310006572,1704285040364,-245.18955419,0.0003283,3]
[310006573,1704285040374,-274.06011312,0.0003283,3]
[310006574,1704285040384,-305.44982303,0.0003283,3]
[310006575,1704285040393,-234.040103,0.00032858,2]
[310006577,1704285040404,-2253.71,0.00032866,10]
[310006579,1704285040414,-588.95146369,0.00032874,4]
[310006581,1704285040423,-5108.6164446,0.00032874,4]
[310006583,1704285040432,-155.73096662,0.00032874,4]
[310006585,1704285040442,-867.06957617,0.00032874,4]
[310006587,1704285040452,-1042.72004838,0.00032874,4]
[310006588,1704285040462,-155.0,0.00032874,4]
[310006589,1704285040471,-821.81176879,0.00032874,2]
[310006590,1704285040481,-263.73380203,0.00032874,4]
[310006591,1704285040490,-711.9,0.00032876,2]
[310006592,1704285040499,-151.0,0.00032876,7]
[310006593,1704285040510,-151.0,0.00032876,7]
[310006594,1704285040519,-151.0,0.00032876,7]
[310006595,1704285040528,-160.311236,0.00032876,7]
[310006596,1704285040538,-160.311236,0.00032876,7]
[310006597,1704285040547,-170.170753,0.00032876,7]
[310006600,1704285040557,-170.170753,0.00032876,7]
[310006603,1704285040566,-156.382557,0.00032876,7]
[310006605,1704285040575,-151.0,0.00032876,7]
[310006607,1704285040585,-151.0,0.00032876,7]
[310006608,1704285040594,-1542.82282,0.00032876,7]
[310006610,1704285040604,-1542.82282,0.00032876,7]
[310006612,1704285040614,-230.114283,0.00032876,7]
[310006613,1704285040623,-230.114283,0.00032876,7]
[310006614,1704285040632,-151.0,0.00032876,7]
[310006615,1704285040641,-151.0,0.00032876,7]
[310006616,1704285040652,-151.0,0.00032876,7]
[310006617,1704285040662,-151.0,0.00032876,7]
[310006618,1704285040671,-151.0,0.00032876,7]
[310006621,1704285040681,-500.0,0.00032876,2]
[310006623,1704285040692,-500.0,0.00032876,2]
[310006625,1704285040701,-500.0,0.00032876,2]
[310006627,1704285040711,-500.0,0.00032876,2]
[310006629,1704285040721,-500.0,0.00032876,2]
[310006631,1704285040730,-453.20572853,0.00032876,2]
[310006633,1704285040740,-500.0,0.00032876,2]
[310006635,1704285040749,-529.69913095,0.00032876,2]
[310006637,1704285040758,-404.00111375,0.00032876,2]
[310006639,1704285040769,-500.0,0.00032876,2]
[310006641,1704285040779,-500.0,0.00032876,2]
[310006642,1704285040788,-500.0,0.00032876,2]
[310006643,1704285040798,-500.0,0.00032876,2]
[310006644,1704285040808,-500.0,0.00032876,2]
[310006645,1704285040818,-500.0,0.00032876,2]
[310006647,1704285040828,-504.78462602,0.00032876,2]
[310006649,1704285040838,-500.0,0.00032876,2]
[310006650,1704285040848,-500.0,0.00032876,2]
[310006653,1704285040858,-500.0,0.00032876,2]
[310006654,1704285040868,-500.0,0.00032876,2]
[310006657,1704285040879,-500.0,0.00032876,2]
[310006659,1704285040889,-500.0,0.00032876,2]
[310006661,1704285040902,-500.0,0.00032876,2]
[310006662,1704285040913,-500.0,0.00032876,2]
[310006664,1704285040925,-500.0,0.00032876,2]
[310006667,1704285040935,-500.0,0.00032876,2]
[310006669,1704285040946,-500.0,0.00032876,2]
[310006671,1704285040957,-344.45496055,0.00032876,2]
[310006673,1704285040967,-500.0,0.00032876,2]
[310006675,1704285040982,-500.0,0.00032876,2]
[310006677,1704285040995,-384.01851152,0.00032876,2]
[310006679,1704285041005,-500.0,0.00032876,2]
[310006681,1704285041016,-500.0,0.00032876,2]
[310006683,1704285041028,-500.0,0.00032876,2]
[310006685,1704285041038,-500.0,0.00032876,2]
[310006687,1704285041048,-500.0,0.00032876,2]
[310006689,1704285041058,-522.11085905,0.00032876,2]
[310006691,1704285041069,-500.0,0.00032876,2]
[310006693,1704285041079,-500.0,0.00032876,2]
[310006695,1704285041089,-500.0,0.00032876,2]
[310006697,1704285041100,-500.0,0.00032876,2]
[310006699,1704285041110,-500.0,0.00032876,2]
[310006701,1704285041120,-500.0,0.00032876,2]
[310006703,1704285041129,-500.0,0.00032876,2]
[310006705,1704285041139,-500.0,0.00032876,2]
[310006707,1704285041151,-241.54,0.00032876,2]
[310006709,1704285041160,-500.0,0.00032876,2]
[310006711,1704285041170,-500.0,0.00032876,2]
[310006713,1704285041179,-508.66153459,0.00032876,2]
[310006715,1704285041189,-500.0,0.00032876,2]
[310006717,1704285041199,-509.8,0.00032876,2]
[310006719,1704285041208,-500.0,0.00032876,2]
[310006721,1704285041217,-500.0,0.00032876,2]
[310006723,1704285041227,-500.0,0.00032876,2]
[310006725,1704285041236,-500.0,0.00032876,2]
[310006727,1704285041245,-500.0,0.00032876,2]
[310006729,1704285041255,-500.0,0.00032876,2]
[310006730,1704285041264,-500.0,0.00032876,2]
[310006732,1704285041273,-500.0,0.00032876,2]
[310006734,1704285041282,-436.16,0.00032876,2]
[310006736,1704285041292,-500.0,0.00032876,2]
[310006738,1704285041301,-500.0,0.00032876,2]
[310006740,1704285041310,-551.02118702,0.00032876,2]
[310006742,1704285041320,-500.0,0.00032876,2]
[310006744,1704285041330,-500.0,0.00032876,2]
[310006746,1704285041339,-500.0,0.00032876,2]
[310006748,1704285041348,-500.0,0.00032876,2]
[310006750,1704285041357,-500.0,0.00032876,2]
[310006752,1704285041367,-500.0,0.00032876,2]
[310006754,1704285041377,-500.0,0.00032876,2]
[310006756,1704285041388,-500.0,0.00032876,2]
[310006758,1704285041401,-500.0,0.00032876,2]
[310006760,1704285041410,-396.03759454,0.00032876,2]
[310006762,1704285041419,-500.0,0.00032876,2]
[310006764,1704285041428,-500.0,0.00032876,2]
[310006766,1704285041437,-500.0,0.00032876,2]
[310006769,1704285041446,-500.0,0.00032876,2]
[310006771,1704285041456,-500.0,0.00032876,2]
[310006772,1704285041465,-200.97,0.00032876,2]
[310006774,1704285041475,-500.0,0.00032876,2]
[310006776,1704285041484,-500.0,0.00032876,2]
[310006778,1704285041493,-500.0,0.00032876,2]
[310006780,1704285041503,-500.0,0.00032876,2]
[310006782,1704285041513,-500.0,0.00032876,2]
[310006784,1704285041524,-500.0,0.00032876,2]
[310006786,1704285041535,-500.0,0.00032876,2]
[310006788,1704285041545,-620.70002761,0.00032876,2]
[310006791,1704285041555,-500.0,0.00032876,2]
[310006792,1704285041565,-539.6474032,0.00032876,2]
[310006794,1704285041575,-500.0,0.00032876,2]
[310006796,1704285041585,-279.68971666,0.00032876,2]
[310006798,1704285041595,-533.44027429,0.00032876,2]
[310006800,1704285041605,-500.0,0.00032876,2]
[310006801,1704285041615,-177.8,0.00032876,2]
[310006802,1704285041625,-500.0,0.00032876,2]
[310006803,1704285041635,-500.0,0.00032876,2]
[310006804,1704285041644,-429.41381036,0.00032876,2]
[310006809,1704285041702,-70.58618964,0.00032876,2]
[310006811,1704285041711,-500.0,0.00032876,2]
[310006813,1704285041720,-500.0,0.00032876,2]
[310006815,1704285041730,-373.59,0.00032876,2]
[310006817,1704285041739,-500.0,0.00032876,2]
[310006820,1704285041748,-500.0,0.00032876,2]
[310006823,1704285041757,-500.0,0.00032876,2]
[310006826,1704285041766,-103.58050017,0.00032876,2]
[310006829,1704285041780,-396.41949983,0.00032876,2]
[310006832,1704285041789,-500.0,0.00032876,2]
[310006835,1704285041799,-500.0,0.00032876,2]
[310006837,1704285041810,-643.55165694,0.00032876,2]
[310006838,1704285041820,-500.0,0.00032876,2]
[310006839,1704285041830,-500.0,0.00032876,2]
[310006840,1704285041839,-500.0,0.00032876,2]
[310006841,1704285041848,-500.0,0.00032876,2]
[310006842,1704285041858,-604.05,0.00032876,2]
[310006843,1704285041868,-500.0,0.00032876,2]
[310006844,1704285041878,-500.0,0.00032876,2]
[310006845,1704285041887,-542.08,0.00032876,2]
[310006846,1704285041898,-503.77358745,0.00032876,2]
[310006847,1704285041909,-500.0,0.00032876,2]
[310006848,1704285041920,-281.95,0.00032876,2]
[310006850,1704285041931,-504.21,0.00032876,2]
[310006852,1704285041940,-500.0,0.00032876,2]
[310006854,1704285041950,-500.0,0.00032876,2]
[310006856,1704285041959,-250.33876975,0.00032876,2]
[310006858,1704285041968,-500.0,0.00032876,2]
[310006860,1704285041978,-500.0,0.00032876,2]
[310006862,1704285041988,-500.0,0.00032876,2]
[310006864,1704285041998,-500.0,0.00032876,2]
[310006866,1704285042010,-500.0,0.00032876,2]
[310006868,1704285042019,-500.0,0.00032876,2]
[310006870,1704285042028,-500.0,0.00032876,2]
[310006872,1704285042038,-500.0,0.00032876,2]
[310006874,1704285042048,-529.45358049,0.00032876,2]
[310006876,1704285042058,-500.0,0.00032876,2]
[310006878,1704285042068,-426.15786378,0.00032876,2]
[310006881,1704285042090,-73.84213622,0.00032876,2]
[310006883,1704285042100,-258.05419141,0.00032876,2]
[310006886,1704285042115,-261.92580859,0.00032876,2]
[310006888,1704285042125,-502.83361124,0.00032876,2]
[310006890,1704285042136,-500.0,0.00032876,2]
[310006892,1704285042148,-500.0,0.00032876,2]
[310006894,1704285042158,-500.0,0.00032876,2]
[310006896,1704285042167,-500.0,0.00032876,2]
[310006898,1704285042177,-169.62,0.00032876,2]
[310006900,1704285042187,-503.89470344,0.00032876,2]
[310006902,1704285042196,-500.0,0.00032876,2]
[310006903,1704285042206,-211.72587672,0.00032876,2]
[310006905,1704285042220,-288.27412328,0.00032876,2]
[310006907,1704285042230,-500.0,0.00032876,2]
[310006908,1704285042242,-500.0,0.00032876,2]
[310006909,1704285042251,-500.0,0.00032876,2]
[310006910,1704285042260,-360.97,0.00032876,2]
[310006911,1704285042269,-500.0,0.00032876,2]
[310006912,1704285042278,-568.43022334,0.00032876,2]
[310006913,1704285042288,-500.0,0.00032876,2]
[310006914,1704285042297,-500.0,0.00032876,2]
[310006915,1704285042306,-562.24800375,0.00032876,2]
[310006916,1704285042315,-500.0,0.00032876,2]
[310006918,1704285042324,-500.0,0.00032876,2]
[310006919,1704285042334,-451.81840628,0.00032876,2]
[310006920,1704285042343,-500.0,0.00032876,2]
[310006921,1704285042352,-500.0,0.00032876,2]
[310006922,1704285042362,-500.0,0.00032876,2]
[310006923,1704285042371,-500.0,0.00032876,2]
[310006924,1704285042380,-303.71,0.00032876,2]
[310006925,1704285042390,-478.51223688,0.00032876,2]
[310006926,1704285042401,-500.0,0.00032876,2]
[310006927,1704285042410,-500.0,0.00032876,2]
[310006928,1704285042419,-500.0,0.00032876,2]
[310006929,1704285042428,-500.0,0.00032876,2]
[310006931,1704285042437,-500.0,0.00032876,2]
[310006933,1704285042446,-500.0,0.00032876,2]
[310006935,1704285042455,-336.20841009,0.00032876,2]
[310006937,1704285042465,-500.0,0.00032876,2]
[310006939,1704285042474,-500.0,0.00032876,2]
[310006940,1704285042483,-500.0,0.00032876,2]
[310006942,1704285042492,-542.94138795,0.00032876,2]
[310006944,1704285042501,-500.0,0.00032876,2]
[310006946,1704285042510,-500.0,0.00032876,2]
[310006948,1704285042519,-503.01,0.00032876,2]
[310006950,1704285042529,-500.0,0.00032876,2]
[310006951,1704285042537,-315.96587359,0.00032876,2]
[310006953,1704285042546,-477.0120754,0.00032876,2]
[310006956,1704285042556,-500.0,0.00032876,2]
[310006957,1704285042565,-203.12177592,0.00032876,2]
[310006960,1704285042574,-500.0,0.00032876,2]
[310006962,1704285042584,-351.35397969,0.00032876,2]
[310006964,1704285042593,-500.0,0.00032876,2]
[310006966,1704285042602,-500.0,0.00032876,2]
[310006968,1704285042611,-500.0,0.00032876,2]
[310006970,1704285042620,-500.0,0.00032876,2]
[310006971,1704285042630,-500.0,0.00032876,2]
[310006974,1704285042640,-500.0,0.00032876,2]
[310006976,1704285042651,-500.0,0.00032876,2]
[310006977,1704285042660,-500.0,0.00032876,2]
[310006979,1704285042671,-536.82376213,0.00032876,2]
[310006981,1704285042680,-523.32546653,0.00032876,2]
[310006983,1704285042689,-576.42222702,0.00032876,2]
[310006986,1704285042699,-506.33481265,0.00032876,2]
[310006987,1704285042709,-500.0,0.00032876,2]
[310006989,1704285042718,-551.89852454,0.00032876,2]
[310006992,1704285042728,-534.41,0.00032876,2]
[310006993,1704285042737,-236.26,0.00032876,2]
[310006995,1704285042746,-500.0,0.00032876,2]
[310006996,1704285042755,-594.19711442,0.00032876,2]
[310006997,1704285042764,-500.0,0.00032876,2]
[310006998,1704285042774,-500.0,0.00032876,2]
[310006999,1704285042783,-500.0,0.00032876,2]
[310007002,1704285042793,-572.73196346,0.00032876,2]
[310007005,1704285042802,-500.0,0.00032876,2]
[310007008,1704285042811,-500.0,0.00032876,2]
[310007011,1704285042820,-500.0,0.00032876,2]
[310007013,1704285042830,-500.0,0.00032876,2]
[310007016,1704285042839,-500.0,0.00032876,2]
[310007018,1704285042849,-500.0,0.00032876,2]
[310007020,1704285042858,-500.0,0.00032876,2]
[310007021,1704285042867,-259.74843195,0.00032876,2]
[310007026,1704285042902,-380.3948572,0.00032876,2]
[310007028,1704285042912,-386.6756128,0.00032876,2]
[310007030,1704285042924,-113.3243872,0.00032876,2]
[310007032,1704285042934,-338.35750113,0.00032876,2]
[310007034,1704285042948,-191.46722675,0.00032876,2]
[310007036,1704285042957,-67.26959365,0.00032876,2]
[310007038,1704285042969,-93.5095581,0.00032876,2]
[310007041,1704285042980,-328.3657719,0.00032876,2]
[310007048,1704285043002,-200.00569561,0.00032876,2]
[310007052,1704285043011,-265.1684862,0.00032876,2]
[310007057,1704285043025,-234.8315138,0.00032876,2]
[310007060,1704285043035,-500.0,0.00032876,2]
[310007063,1704285043044,-420.13316289,0.00032876,2]
[310007066,1704285043060,-74.24145085,0.00032876,2]
[310007069,1704285043071,-522.20799173,0.00032876,2]
[310007071,1704285043081,-503.05805642,0.00032876,2]
[310007074,1704285043091,-500.0,0.00032876,2]
[310007077,1704285043101,-518.54142518,0.00032876,2]
[310007081,1704285043111,-500.0,0.00032876,2]
[310007084,1704285043121,-500.0,0.00032876,2]
[310007087,1704285043130,-500.0,0.00032876,2]
[310007092,1704285043140,-500.0,0.00032876,2]
[310007093,1704285043150,-500.0,0.00032876,2]
[310007098,1704285043160,-500.0,0.00032876,2]
[310007101,1704285043169,-500.0,0.00032876,2]
[310007105,1704285043178,-231.66526122,0.00032876,2]
[310007108,1704285043187,-537.90047114,0.00032876,2]
[310007113,1704285043196,-500.0,0.00032876,2]
[310007117,1704285043206,-522.58792984,0.00032876,2]
[310007120,1704285043215,-168.84854222,0.00032876,2]
[310007122,1704285043224,-500.0,0.00032876,2]
[310007125,1704285043233,-540.90070485,0.00032876,2]
[310007128,1704285043242,-272.43899519,0.00032876,2]
[310007131,1704285043251,-500.0,0.00032876,2]
[310007134,1704285043261,-500.0,0.00032876,2]
[310007137,1704285043270,-500.0,0.00032876,2]
[310007140,1704285043280,-528.2239312,0.00032876,2]
[310007143,1704285043289,-500.0,0.00032876,2]
[310007145,1704285043299,-524.68684553,0.00032876,2]
[310007147,1704285043308,-318.69,0.00032876,2]
[310007149,1704285043318,-500.0,0.00032876,2]
[310007151,1704285043328,-500.0,0.00032876,2]
[310007153,1704285043338,-500.0,0.00032876,2]
[310007155,1704285043348,-500.0,0.00032876,2]
[310007157,1704285043358,-500.0,0.00032876,2]
[310007159,1704285043369,-500.0,0.00032876,2]
[310007161,1704285043379,-500.0,0.00032876,2]
[310007163,1704285043390,-500.0,0.00032876,2]
[310007164,1704285043402,-500.0,0.00032876,2]
[310007165,1704285043412,-500.0,0.00032876,2]
[310007166,1704285043567,-500.0,0.00032876,2]
[310007167,1704285043599,-500.0,0.00032876,2]
[310007168,1704285043610,-500.0,0.00032876,2]
[310007169,1704285043620,-500.0,0.00032876,2]
[310007170,1704285043630,-500.0,0.00032876,2]
[310007171,1704285043640,-500.0,0.00032876,2]
[310007172,1704285043652,-514.50330271,0.00032876,2]
[310007173,1704285043662,-285.38069266,0.00032876,2]
[310007174,1704285043688,-214.61930734,0.00032876,2]
[310007175,1704285043698,-244.01349266,0.00032876,2]
[310007176,1704285043795,-255.98650734,0.00032876,2]
[310007177,1704285043807,-500.0,0.00032876,2]
[310007178,1704285043817,-517.23599671,0.00032876,2]
[310007179,1704285043826,-182.87881806,0.00032876,2]
[310007181,1704285044043,-153.54704218,0.00032876,2]
[310007182,1704285044055,-163.57413976,0.00032876,2]
[310007183,1704285044065,-486.23315491,0.00032876,2]
[310007184,1704285044075,-523.77763219,0.00032876,2]
[310007185,1704285044084,-500.0,0.00032876,2]
[310007186,1704285044094,-432.92666658,0.00032876,2]
[310007190,1704285044104,-500.0,0.00032876,2]
[310007195,1704285044114,-500.0,0.00032876,2]
[310007200,1704285044123,-414.37,0.00032876,2]
[310007204,1704285044132,-507.83681101,0.00032876,2]
[310007207,1704285044141,-164.23201255,0.00032876,2]
[310007210,1704285044152,-500.0,0.00032876,2]
[310007214,1704285044161,-500.0,0.00032876,2]
[310007217,1704285044170,-500.0,0.00032876,2]
[310007220,1704285044179,-500.0,0.00032876,2]
[310007223,1704285044189,-500.0,0.00032876,2]
[310007226,1704285044198,-500.0,0.00032876,2]
[310007229,1704285044207,-500.0,0.00032876,2]
[310007232,1704285044217,-500.0,0.00032876,2]
[310007235,1704285044226,-500.0,0.00032876,2]
[310007238,1704285044235,-500.0,0.00032876,2]
[310007241,1704285044244,-500.0,0.00032876,2]
[310007244,1704285044253,-500.0,0.00032876,2]
[310007247,1704285044264,-500.0,0.00032876,2]
[310007250,1704285044273,-500.0,0.00032876,2]
[310007253,1704285044283,-194.48849924,0.00032876,2]
[310007256,1704285044293,-500.0,0.00032876,2]
[310007259,1704285044302,-558.67445278,0.00032876,2]
[310007262,1704285044312,-500.0,0.00032876,2]
[310007264,1704285044321,-259.88848301,0.00032876,2]
[310007266,1704285044330,-516.41609323,0.00032876,2]
[310007268,1704285044338,-500.0,0.00032876,2]
[310007271,1704285044348,-525.77482584,0.00032876,2]
[310007273,1704285044357,-500.0,0.00032876,2]
[310007276,1704285044365,-500.0,0.00032876,2]
[310007279,1704285044375,-410.57548995,0.00032876,2]
[310007282,1704285044384,-500.0,0.00032876,2]
[310007285,1704285044394,-647.63727831,0.00032876,2]
[310007287,1704285044404,-500.0,0.00032876,2]
[310007290,1704285044413,-500.0,0.00032876,2]
[310007292,1704285044423,-500.0,0.00032876,2]
[310007294,1704285044432,-539.10949711,0.00032876,2]
[310007296,1704285044441,-505.73324911,0.00032876,2]
[310007297,1704285044450,-500.0,0.00032876,2]
[310007299,1704285044460,-500.0,0.00032876,2]
[310007300,1704285044469,-500.0,0.00032876,2]
[310007302,1704285044479,-358.29,0.00032876,2]
[310007303,1704285044489,-500.0,0.00032876,2]
[310007305,1704285044499,-500.0,0.00032876,2]
[310007307,1704285044508,-500.0,0.00032876,2]
[310007308,1704285044517,-500.0,0.00032876,2]
[310007309,1704285044527,-562.75854322,0.00032876,2]
[310007310,1704285044536,-500.0,0.00032876,2]
[310007311,1704285044546,-500.0,0.00032876,2]
[310007312,1704285044555,-500.0,0.00032876,2]
[310007313,1704285044564,-500.0,0.00032876,2]
[310007314,1704285044574,-524.89190431,0.00032876,2]
[310007315,1704285044583,-500.0,0.00032876,2]
[310007316,1704285044592,-246.90880712,0.00032876,2]
[310007317,1704285044602,-500.17074379,0.00032876,2]
[310007318,1704285044611,-500.0,0.00032876,2]
[310007319,1704285044620,-500.0,0.00032876,2]
[310007320,1704285044630,-458.04,0.00032876,2]
[310007321,1704285044639,-500.0,0.00032876,2]
[310007322,1704285044650,-500.0,0.00032876,2]
[310007323,1704285044659,-604.91405806,0.00032876,2]
[310007324,1704285044669,-567.0942988,0.00032876,2]
[310007325,1704285044678,-562.65038724,0.00032876,2]
[310007326,1704285044688,-500.0,0.00032876,2]
[310007327,1704285044697,-502.80860992,0.00032876,2]
[310007328,1704285044706,-500.0,0.00032876,2]
[310007329,1704285044714,-500.0,0.00032876,2]
[310007330,1704285044723,-649.17,0.00032876,2]
[310007331,1704285044732,-571.18836671,0.00032876,2]
[310007332,1704285044741,-267.17217405,0.00032876,2]
[310007333,1704285044750,-500.0,0.00032876,2]
[310007334,1704285044759,-500.0,0.00032876,2]
[310007335,1704285044768,-525.79266801,0.00032876,2]
[310007336,1704285044778,-500.0,0.00032876,2]
[310007337,1704285044787,-500.0,0.00032876,2]
[310007338,1704285044797,-500.0,0.00032876,2]
[310007339,1704285044807,-526.43299995,0.00032876,2]
[310007340,1704285044817,-500.0,0.00032876,2]
[310007341,1704285044826,-500.0,0.00032876,2]
[310007342,1704285044835,-500.0,0.00032876,2]
[310007343,1704285044844,-500.0,0.00032876,2]
[310007344,1704285044854,-500.0,0.00032876,2]
[310007345,1704285044863,-583.66893446,0.00032876,2]
[310007346,1704285044872,-500.0,0.00032876,2]
[310007347,1704285044882,-500.0,0.00032876,2]
[310007348,1704285044891,-500.0,0.00032876,2]
[310007349,1704285044903,-500.0,0.00032876,2]
[310007350,1704285044912,-500.0,0.00032876,2]
[310007351,1704285044922,-500.0,0.00032876,2]
[310007352,1704285044931,-500.0,0.00032876,2]
[310007353,1704285044939,-500.0,0.00032876,2]
[310007354,1704285044949,-500.0,0.00032876,2]
[310007355,1704285044959,-500.0,0.00032876,2]
[310007356,1704285044968,-500.0,0.00032876,2]
[310007357,1704285044980,-536.52087985,0.00032876,2]
[310007358,1704285044989,-500.0,0.00032876,2]
[310007359,1704285044999,-500.0,0.00032876,2]
[310007360,1704285045008,-500.0,0.00032876,2]
[310007361,1704285045019,-500.0,0.00032876,2]
[310007362,1704285045034,-500.0,0.00032876,2]
[310007363,1704285045044,-500.0,0.00032876,2]
[310007364,1704285045053,-500.0,0.00032876,2]
[310007365,1704285045063,-500.0,0.00032876,2]
[310007366,1704285045072,-500.0,0.00032876,2]
[310007367,1704285045081,-456.65,0.00032876,2]
[310007368,1704285045091,-500.0,0.00032876,2]
[310007369,1704285045100,-500.0,0.00032876,2]
[310007370,1704285045110,-500.0,0.00032876,2]
[310007371,1704285045120,-500.0,0.00032876,2]
[310007372,1704285045129,-500.0,0.00032876,2]
[310007373,1704285045138,-500.0,0.00032876,2]
[310007374,1704285045148,-500.0,0.00032876,2]
[310007375,1704285045158,-500.0,0.00032876,2]
[310007376,1704285045167,-500.0,0.00032876,2]
[310007377,1704285045177,-500.0,0.00032876,2]
[310007378,1704285045186,-500.0,0.00032876,2]
[310007379,1704285045195,-500.0,0.00032876,2]
[310007380,1704285045204,-500.0,0.00032876,2]
[310007381,1704285045213,-500.0,0.00032876,2]
[310007382,1704285045223,-593.68345578,0.00032876,2]
[310007383,1704285045232,-500.0,0.00032876,2]
[310007384,1704285045241,-234.45448988,0.00032876,2]
[310007385,1704285045251,-500.0,0.00032876,2]
[310007386,1704285045261,-500.0,0.00032876,2]
[310007387,1704285045270,-500.0,0.00032876,2]
[310007388,1704285045280,-500.0,0.00032876,2]
[310007389,1704285045290,-540.59903621,0.00032876,2]
[310007390,1704285045299,-500.0,0.00032876,2]
[310007391,1704285045308,-500.0,0.00032876,2]
[310007392,1704285045317,-500.0,0.00032876,2]
[310007393,1704285045326,-500.0,0.00032876,2]
[310007394,1704285045335,-500.0,0.00032876,2]
[310007395,1704285045344,-500.0,0.00032876,2]
[310007396,1704285045353,-439.82249161,0.00032876,2]
[310007397,1704285045362,-500.0,0.00032876,2]
[310007398,1704285045372,-287.60060396,0.00032876,2]
[310007399,1704285045381,-500.0,0.00032876,2]
[310007400,1704285045390,-500.0,0.00032876,2]
[310007401,1704285045401,-186.75918848,0.00032876,2]
[310007402,1704285045411,-617.79990294,0.00032876,2]
[310007403,1704285045420,-500.0,0.00032876,2]
[310007404,1704285045429,-500.0,0.00032876,2]
[310007405,1704285045440,-500.0,0.00032876,2]
[310007406,1704285045450,-478.41442997,0.00032876,2]
[310007407,1704285045462,-500.0,0.00032876,2]
[310007408,1704285045471,-500.0,0.00032876,2]
[310007409,1704285045481,-500.0,0.00032876,2]
[310007410,1704285045491,-500.0,0.00032876,2]
[310007411,1704285045501,-500.0,0.00032876,2]
[310007412,1704285045511,-500.0,0.00032876,2]
[310007413,1704285045521,-585.3,0.00032876,2]
[310007414,1704285045531,-526.25911398,0.00032876,2]
[310007415,1704285045541,-585.3,0.00032876,2]
[310007416,1704285045551,-585.3,0.00032876,2]
[310007417,1704285045561,-585.3,0.00032876,2]
[310007418,1704285045570,-500.0,0.00032876,2]
[310007419,1704285045580,-585.3,0.00032876,2]
[310007420,1704285045590,-305.94,0.00032876,2]
[310007421,1704285045600,-585.3,0.00032876,2]
[310007422,1704285045610,-585.3,0.00032876,2]
[310007423,1704285045619,-585.3,0.00032876,2]
[310007424,1704285045629,-585.3,0.00032876,2]